bitfinex-derivatives/quotes_SOLF0:USTF0_20250923
["timestamp","ask_amount","ask_price","bid_price","bid_amount"]
[1758615441845,117.44,219.43,219.37,11.2697]
[1758615442651,112.62,219.45,219.37,7.17]
[1758615443346,112.62,219.45,219.39,4.0994]
[1758615443550,4.8,219.44,219.37,7.17]
[1758615444455,7.77708947,219.49,219.39,7.17]
[1758615444652,116.3326146,219.48,219.41,4.099]
[1758615444853,4.8,219.47,219.41,4.099]
[1758615445052,4.8,219.47,219.39,7.17]
[1758615445856,4.8,219.47,219.39,11.2694]
[1758615447960,4.8,219.47,219.39,7.17]
[1758615448552,1.90026537,219.49,219.39,1.90026537]
[1758615448754,112.6,219.48,219.4,7.17]
[1758615449459,112.6,219.48,219.4,11.269]
[1758615449656,112.6,219.48,219.4,7.17]
[1758615450859,117.37,219.48,219.44,4.0984]
[1758615451657,4.79,219.47,219.44,4.0984]
[1758615452358,4.79,219.47,219.42,4.0988]
[1758615452559,4.79,219.47,219.43,6.99]
[1758615452760,4.79,219.47,219.4,6.99]
[1758615453762,4.79,219.47,219.43,4.0985]
[1758615454062,4.79,219.47,219.43,11.0885]
[1758615454757,112.58,219.48,219.39,1.90026537]
[1758615454758,1.90026537,219.49,219.44,4.0983]
[1758615454962,112.58,219.48,219.45,6.99]
[1758615455762,112.58,219.48,219.46,6.99]
[1758615456157,346.62026537,219.52,219.45,4.0981]
[1758615456158,112.56,219.5,219.45,4.0981]
[1758615456358,112.56,219.5,219.46,6.99]
[1758615456557,112.56,219.5,219.46,11.0879]
[1758615457066,117.35,219.5,219.46,11.0879]
[1758615457254,4.79,219.5,219.47,6.99]
[1758615457460,112.56,219.51,219.47,6.99]
[1758615458055,112.56,219.51,219.46,4.0979]
[1758615458261,4.79,219.5,219.44,4.0984]
[1758615458460,4.79,219.5,219.42,6.99]
[1758615458854,4.79,219.5,219.46,4.0979]
[1758615459061,4.79,219.5,219.46,11.0879]
[1758615459766,4.79,219.5,219.46,4.0979]
[1758615460264,112.56,219.51,219.46,11.0879]
[1758615460460,4.79,219.5,219.46,11.0879]
[1758615461267,112.56,219.51,219.46,11.0879]
[1758615461474,4.79,219.5,219.46,11.0879]
[1758615462161,4.79,219.5,219.43,4.0986]
[1758615462162,6.69026537,219.5,219.43,4.0986]
[1758615462363,4.79,219.49,219.41,6.99]
[1758615462769,117.33,219.49,219.41,6.99]
[1758615462965,112.54,219.49,219.43,1.90026537]
[1758615463161,112.54,219.49,219.43,8.89026537]
[1758615463357,112.54,219.52,219.44,6.99]
[1758615463866,4.79,219.51,219.44,6.99]
[1758615464673,4.79,219.51,219.4,8.89026537]
[1758615465171,112.54,219.5,219.4,72.65506537]
[1758615465364,112.54,219.5,219.46,4.0981]
[1758615465571,4.79,219.49,219.46,4.0981]
[1758615466069,4.79,219.49,219.47,4.0977]
[1758615466267,112.54,219.5,219.47,4.0977]
[1758615466268,4.79,219.56,219.47,4.0977]
[1758615466466,4.79,219.54,219.46,8.89026537]
[1758615467173,3.7379612,219.53,219.48,4.0977]
[1758615467369,4.79,219.54,219.48,4.0977]
[1758615467564,3.73811179,219.53,219.48,4.0977]
[1758615467770,4.79,219.51,219.48,4.0977]
[1758615468670,4.79,219.51,219.49,4.0974]
[1758615469070,4.0957,219.59,219.49,4.0974]
[1758615469270,122.20780318,219.57,219.49,4.0974]
[1758615469470,6.69026537,219.55,219.49,4.0974]
[1758615469668,3.73906029,219.54,219.49,4.0974]
[1758615469869,5.63932566,219.54,219.49,4.0974]
[1758615470073,4.79,219.52,219.49,4.0974]
[1758615470368,4.79,219.51,219.49,4.0974]
[1758615472577,112.52,219.52,219.46,11.0879]
[1758615472772,8.53260081,219.51,219.46,11.0879]
[1758615472972,4.79,219.51,219.44,1.90026537]
[1758615473171,4.79,219.51,219.45,6.99]
[1758615473479,112.52,219.52,219.47,6.99]
[1758615473680,8.5339897,219.51,219.47,6.99]
[1758615473979,4.79,219.51,219.47,6.99]
[1758615474180,112.52,219.52,219.46,70.7387]
[1758615474380,3.74579291,219.51,219.46,63.7487]
[1758615474586,112.52,219.52,219.46,70.7387]
[1758615474781,3.74579314,219.51,219.49,4.0975]
[1758615474981,117.31,219.52,219.49,4.0975]
[1758615475176,3.74579314,219.51,219.49,4.0975]
[1758615475478,117.31,219.52,219.49,4.0975]
[1758615475783,3.74724809,219.51,219.49,4.0975]
[1758615475983,117.31,219.52,219.49,4.0975]
[1758615476175,3.74724809,219.51,219.49,4.0975]
[1758615476371,3.74724809,219.5,219.49,4.0975]
[1758615476577,3.74724809,219.51,219.49,4.0975]
[1758615476777,4.79,219.52,219.49,4.0975]
[1758615476977,3.74866644,219.51,219.49,4.0975]
[1758615477177,4.79,219.52,219.49,4.0975]
[1758615477377,3.75020675,219.51,219.49,4.0975]
[1758615477578,4.79,219.52,219.49,4.0975]
[1758615477784,3.75020675,219.51,219.49,4.0975]
[1758615477984,3.75020675,219.5,219.49,4.0975]
[1758615478375,3.75020675,219.51,219.49,4.0975]
[1758615478577,4.79,219.52,219.49,4.0975]
[1758615478784,3.75198908,219.51,219.49,4.0975]
[1758615479084,3.75206466,219.5,219.47,4.0979]
[1758615479282,117.31,219.53,219.47,4.0979]
[1758615479478,3.75394573,219.52,219.47,4.0979]
[1758615479683,4.79,219.5,219.47,4.0979]
[1758615480577,4.79,219.52,219.45,5.99856537]
[1758615480775,3.75600615,219.51,219.45,4.0983]
[1758615480973,112.52,219.53,219.45,4.0983]
[1758615480974,3.75600615,219.5,219.45,4.0983]
[1758615481174,3.75600615,219.49,219.42,65.65976537]
[1758615481380,112.5,219.49,219.45,7.13]
[1758615481580,112.5,219.49,219.45,1.90026537]
[1758615481876,4.79,219.53,219.45,1.90026537]
[1758615482082,4.89554471,219.52,219.46,63.7486]
[1758615482279,56.6,219.54,219.48,1.90026537]
[1758615482479,8.54707408,219.53,219.48,9.03026537]
[1758615482785,8.54707408,219.52,219.49,7.13]
[1758615483083,4.79,219.52,219.49,7.13]
[1758615483284,3.75799248,219.51,219.45,9.03026537]
[1758615483484,4.79,219.53,219.45,9.03026537]
[1758615483677,3.75799289,219.52,219.45,9.03026537]
[1758615483984,4.79,219.53,219.47,7.13]
[1758615484183,3.75799371,219.52,219.46,63.7487]
[1758615484385,4.79,219.53,219.47,7.13]
[1758615484583,3.75862513,219.52,219.46,63.7487]
[1758615484779,4.79,219.53,219.47,7.13]
[1758615484980,3.75862595,219.52,219.46,63.7487]
[1758615485285,58.49,219.55,219.5,4.0972]
[1758615485584,9.68811727,219.54,219.5,11.2272]
[1758615485777,3.75939088,219.53,219.5,11.2272]
[1758615486183,3.75939088,219.53,219.52,4.097]
[1758615486384,112.5,219.57,219.52,11.227]
[1758615486585,3.75978177,219.56,219.52,7.13]
[1758615486786,3.75978177,219.55,219.52,7.13]
[1758615486985,4.79,219.6,219.52,7.13]
[1758615487281,3.75913044,219.59,219.54,1.90026537]
[1758615487482,4.79,219.6,219.54,9.03026537]
[1758615487787,345.14067861,219.65,219.58,7.13]
[1758615487788,3.75865809,219.59,219.58,7.13]
[1758615488182,117.29,219.63,219.59,4.0956]
[1758615488486,3.7571527,219.62,219.6,7.13]
[1758615488685,349.25,219.65,219.6,7.13]
[1758615488888,3.75662445,219.64,219.59,4.0956]
[1758615489081,3.75662445,219.63,219.6,7.13]
[1758615489387,349.25,219.65,219.59,4.0956]
[1758615489583,4.79,219.63,219.59,4.0956]
[1758615489787,344.46,219.65,219.62,7.13]
[1758615490089,3.75410264,219.64,219.62,7.13]
[1758615490388,344.46,219.65,219.62,7.13]
[1758615491183,4.79,219.68,219.61,5.99556537]
[1758615491490,8.54044783,219.67,219.62,9.03026537]
[1758615491686,4.79,219.67,219.63,7.13]
[1758615492591,112.52,219.68,219.62,9.03026537]
[1758615492786,3.74820073,219.67,219.63,7.13]
[1758615492978,4.79,219.67,219.63,7.13]
[1758615493691,5.64722448,219.66,219.58,4.0957]
[1758615493888,5.64722448,219.66,219.56,7.13]
[1758615493889,3.74722133,219.65,219.56,7.13]
[1758615494188,8.53722133,219.64,219.56,7.13]
[1758615494383,112.5,219.63,219.56,7.13]
[1758615494588,4.79,219.62,219.56,7.13]
[1758615495692,112.5,219.63,219.58,7.13]
[1758615495895,4.79,219.62,219.58,7.13]
[1758615496187,4.79,219.62,219.57,11.226]
[1758615496392,4.79,219.62,219.58,7.13]
[1758615496593,25.14,219.64,219.59,4.0956]
[1758615496788,25.14,219.64,219.6,7.13]
[1758615496989,25.14,219.64,219.59,4.0956]
[1758615497189,6.69026537,219.68,219.6,6.98]
[1758615497392,78.49526921,219.67,219.6,6.98]
[1758615497592,3.75526921,219.66,219.6,6.98]
[1758615497891,8.53526921,219.66,219.57,1.90026537]
[1758615498091,4.78,219.66,219.57,1.90026537]
[1758615498491,4.78,219.66,219.56,11.0761]
[1758615498791,4.78,219.66,219.58,4.0958]
[1758615498999,4.78,219.7,219.6,1.90026537]
[1758615499297,4.78,219.7,219.58,63.712]
[1758615499298,3.75460718,219.69,219.63,1.90026537]
[1758615499496,91.96,219.7,219.63,1.90026537]
[1758615499692,3.75376449,219.69,219.63,1.90026537]
[1758615499893,112.5,219.69,219.63,1.90026537]
[1758615500793,6.68026537,219.74,219.65,6.98]
[1758615500986,3.75282596,219.73,219.66,1.90026537]
[1758615501185,112.46,219.76,219.72,5.99346537]
[1758615501392,112.46,219.76,219.72,12.97346537]
[1758615501787,349.12,219.79,219.72,12.97346537]
[1758615501992,461.76,219.79,219.72,12.97346537]
[1758615502194,461.76,219.79,219.72,6.98]
[1758615502399,461.76,219.79,219.71,1.90026537]
[1758615502789,112.6,219.78,219.71,5.99366537]
[1758615503004,349.12,219.79,219.74,1.90026537]
[1758615503199,112.6,219.79,219.75,6.98]
[1758615503402,112.6,219.79,219.77,8.88026537]
[1758615503702,112.6,219.79,219.77,1.90026537]
[1758615503998,112.6,219.79,219.75,11.0726]
[1758615504199,112.6,219.79,219.75,6.98]
[1758615504398,4.78,219.78,219.74,1.90026537]
[1758615504801,112.6,219.79,219.74,8.88026537]
[1758615505004,117.38,219.79,219.74,1.90026537]
[1758615505201,32.98701902,220.28,219.75,70.6443]
[1758615505202,4.78,219.87,219.75,70.6443]
[1758615505403,112.58,219.86,219.77,1.90026537]
[1758615505605,112.58,219.86,219.78,6.98]
[1758615506002,6.68026537,219.87,219.78,6.98]
[1758615506304,112.66,219.86,219.8,1.90026537]
[1758615506513,4.78,219.87,219.8,1.90026537]
[1758615506804,73.42,219.9,219.83,1.90026537]
[1758615507003,3.73024925,219.89,219.83,1.90026537]
[1758615507202,112.66,219.9,219.84,6.98]
[1758615507497,8.50688858,219.89,219.84,6.98]
[1758615507703,4.78,219.89,219.84,6.98]
[1758615509899,112.66,219.9,219.83,1.90026537]
[1758615510100,112.66,219.9,219.84,6.98]
[1758615510295,4.78,219.95,219.82,4.0913]
[1758615510500,4.78,219.95,219.87,1.90026537]
[1758615510696,4.78,219.95,219.83,2.95630341]
[1758615510904,117.4,219.95,219.86,4.0905]
[1758615511201,4.78,219.95,219.87,7.71]
[1758615511803,4.78,219.95,219.87,11.8003]
[1758615512206,456.8,219.96,219.87,11.8003]
[1758615512706,4.77,219.95,219.87,7.71]
[1758615512904,117.75,219.95,219.87,7.71]
[1758615513304,4.77,219.94,219.82,7.71]
[1758615514805,4.77,219.94,219.83,4.0911]
[1758615515009,4.77,219.94,219.84,7.71]
[1758615515200,112.98,219.93,219.84,7.71]
[1758615516203,112.98,219.93,219.85,4.0908]
[1758615516410,112.98,219.93,219.84,63.6384]
[1758615516710,117.71,219.94,219.85,7.71]
[1758615517710,4.77,219.94,219.87,4.0904]
[1758615519008,4.77,219.94,219.87,11.8004]
[1758615519207,4.77,219.97,219.89,4.09]
[1758615519403,117.63,219.97,219.89,4.09]
[1758615519902,117.73,219.97,219.89,4.09]
[1758615520209,117.73,219.97,219.9,7.71]
[1758615521211,117.73,219.97,219.86,4.0905]
[1758615521407,117.73,219.97,219.86,11.8005]
[1758615521612,117.73,219.97,219.86,7.71]
[1758615522012,3.69689772,219.96,219.8,7.71]
[1758615522212,112.96,219.97,219.8,7.71]
[1758615522506,4.77,219.95,219.8,7.71]
[1758615522703,112.96,219.97,219.8,7.71]
[1758615522902,4.77,219.93,219.82,4.0913]
[1758615523104,112.96,219.92,219.83,7.71]
[1758615523510,4.77,219.91,219.83,7.71]
[1758615523711,4.77,219.91,219.79,11.8018]
[1758615523911,112.96,219.92,219.79,11.8018]
[1758615524215,3.70016704,219.91,219.79,11.8018]
[1758615524510,112.96,219.92,219.79,11.8018]
[1758615524815,4.77,219.87,219.76,4.0923]
[1758615525009,2.95630341,219.9,219.76,4.0923]
[1758615525010,4.77,219.85,219.76,63.6616]
[1758615525216,36.88,219.86,219.77,7.71]
[1758615525417,17.46,219.86,219.77,7.71]
[1758615526308,37.94,219.88,219.79,7.71]
[1758615526915,58.37,219.89,219.79,7.71]
[1758615527315,58.37,219.89,219.81,4.0915]
[1758615528319,4.77,219.88,219.79,7.71]
[1758615528513,3.68080716,219.87,219.79,7.71]
[1758615528717,4.77,219.88,219.79,7.71]
[1758615528919,8.45080915,219.87,219.79,7.71]
[1758615529218,4.77,219.87,219.79,7.71]
[1758615530012,3.6834453,219.86,219.75,4.0925]
[1758615530219,3.6834453,219.85,219.74,7.71]
[1758615530416,4.77,219.83,219.74,7.71]
[1758615531321,3.69042934,219.82,219.76,4.0925]
[1758615531520,4.77,219.83,219.76,4.0925]
[1758615531722,3.69042974,219.82,219.76,4.0925]
[1758615531923,4.77,219.83,219.76,4.0925]
[1758615532117,3.69035459,219.82,219.76,4.0925]
[1758615532421,4.77,219.83,219.76,4.0925]
[1758615532621,3.69283186,219.82,219.76,4.0925]
[1758615532812,4.77,219.83,219.76,4.0925]
[1758615533016,3.69283226,219.82,219.76,4.0925]
[1758615533223,4.77,219.83,219.76,4.0925]
[1758615533422,3.69482404,219.82,219.76,4.0925]
[1758615533624,4.77,219.83,219.76,4.0925]
[1758615533823,3.69482485,219.82,219.76,4.0925]
[1758615534020,4.77,219.83,219.76,4.0925]
[1758615534324,3.69482444,219.82,219.76,4.0925]
[1758615534524,4.77,219.83,219.76,4.0925]
[1758615534721,3.69640095,219.82,219.76,4.0925]
[1758615534921,4.77,219.83,219.76,4.0925]
[1758615535124,3.69640135,219.82,219.78,4.0921]
[1758615535320,4.77,219.83,219.79,7.71]
[1758615535520,3.69805023,219.82,219.79,7.71]
[1758615535721,4.77,219.83,219.79,7.71]
[1758615536716,4.0907,219.86,219.75,4.0925]
[1758615536922,8.46972188,219.85,219.75,11.8025]
[1758615537119,3.69972188,219.84,219.75,11.8025]
[1758615537524,3.69972188,219.84,219.77,4.0922]
[1758615537721,7.79072188,219.84,219.75,7.71]
[1758615537921,3.69972188,219.83,219.76,4.0925]
[1758615538423,3.69972188,219.82,219.75,7.71]
[1758615538622,4.77,219.85,219.75,7.71]
[1758615538821,3.70287234,219.84,219.75,7.71]
[1758615539017,3.70287234,219.83,219.75,7.71]
[1758615539222,3.70550384,219.82,219.75,7.71]
[1758615539424,4.77,219.85,219.75,7.71]
[1758615539617,3.70550384,219.84,219.75,7.71]
[1758615539824,3.70550384,219.83,219.78,4.0921]
[1758615540025,3.70550384,219.82,219.78,11.8021]
[1758615540224,3.70790762,219.81,219.78,11.8021]
[1758615540528,120.54630341,219.89,219.79,7.71]
[1758615540723,3.70753869,219.88,219.79,7.71]
[1758615540927,3.70753869,219.87,219.79,7.71]
[1758615541122,3.70753869,219.86,219.79,7.71]
[1758615541321,3.70753869,219.85,219.79,7.71]
[1758615541516,3.70753869,219.84,219.78,7.08]
[1758615541720,120.48630341,219.89,219.78,7.08]
[1758615541924,3.71066105,219.88,219.78,7.08]
[1758615542124,3.71066105,219.87,219.78,7.08]
[1758615542326,3.71066105,219.86,219.78,7.08]
[1758615542525,3.71066105,219.85,219.78,7.08]
[1758615542722,3.71066105,219.84,219.78,7.08]
[1758615542920,3.71066105,219.84,219.74,63.6669]
[1758615542921,3.71066105,219.83,219.8,7.08]
[1758615543124,117.53,219.89,219.79,11.1719]
[1758615543321,3.71369317,219.88,219.79,11.1719]
[1758615543526,3.71369317,219.87,219.79,11.1719]
[1758615543726,3.71369317,219.86,219.79,11.1719]
[1758615543922,3.71369317,219.85,219.79,11.1719]
[1758615544126,3.71369317,219.84,219.8,7.08]
[1758615544429,3.71369317,219.83,219.8,7.08]
[1758615544631,120.31,219.89,219.8,7.08]
[1758615544831,3.72066178,219.88,219.8,7.08]
[1758615545027,3.72066178,219.87,219.8,7.08]
[1758615545223,3.72066178,219.86,219.8,7.08]
[1758615545424,3.72066178,219.85,219.79,11.1719]
[1758615545625,3.72066178,219.84,219.81,11.1715]
[1758615545822,3.72066178,219.83,219.81,11.1715]
[1758615546025,4.77,219.88,219.81,11.1715]
[1758615546229,3.7246236,219.87,219.81,11.1715]
[1758615546530,4.77,219.85,219.75,7.08]
[1758615546725,3.7246236,219.84,219.75,7.08]
[1758615546925,3.7246236,219.84,219.78,4.0921]
[1758615548936,4.77,219.82,219.7,70.7579]
[1758615549238,4.77,219.8,219.7,7.08]
[1758615549436,3.7246236,219.79,219.7,7.08]
[1758615549631,4.77,219.78,219.7,7.08]
[1758615549839,3.7246236,219.77,219.7,11.1735]
[1758615550038,3.7246236,219.77,219.7,7.08]
[1758615550735,4.77,219.78,219.7,7.08]
[1758615551033,8.50022596,219.77,219.72,11.1732]
[1758615551239,4.77,219.77,219.72,11.1732]
[1758615553439,4.77,219.77,219.72,4.0932]
[1758615553633,4.77,219.77,219.73,7.08]
[1758615554141,4.0909,219.85,219.74,4.0928]
[1758615554345,100.117781,219.84,219.74,63.6658]
[1758615554646,3.727781,219.83,219.77,11.1722]
[1758615554847,8.497781,219.82,219.72,7.08]
[1758615555047,3.72697957,219.81,219.72,7.08]
[1758615555249,4.77,219.82,219.72,7.08]
[1758615555442,4.77,219.82,219.73,4.0929]
[1758615555641,3.72696962,219.81,219.72,7.08]
[1758615555842,4.77,219.82,219.72,7.08]
[1758615556249,16.30745155,219.88,219.77,4.0923]
[1758615556250,4.77,219.87,219.77,4.0923]
[1758615556548,116.50691008,219.86,219.77,4.0923]
[1758615556849,3.72691008,219.85,219.77,4.0923]
[1758615557346,3.72691008,219.85,219.76,7.08]
[1758615557347,4.77,219.84,219.76,7.08]
[1758615557549,3.72691008,219.83,219.74,4.0927]
[1758615557749,4.77,219.82,219.74,4.0927]
[1758615557945,3.72691008,219.81,219.74,4.0927]
[1758615559248,4.77,219.82,219.74,4.0927]
[1758615559743,4.77,219.82,219.75,4.0925]
[1758615559947,4.77,219.82,219.74,7.31]
[1758615560841,4.77,219.82,219.73,63.6691]
[1758615560842,4.77,219.82,219.78,7.31]
[1758615565252,3.78706085,219.81,219.78,7.31]
[1758615565454,4.77,219.82,219.78,7.31]
[1758615565649,3.7872422,219.81,219.78,7.31]
[1758615565850,4.77,219.82,219.78,7.31]
[1758615566052,3.7872426,219.81,219.72,7.31]
[1758615566252,2.95630341,219.85,219.75,7.31]
[1758615566553,3.78986213,219.84,219.75,7.31]
[1758615566754,3.78986213,219.83,219.75,7.31]
[1758615566954,3.78986213,219.82,219.75,7.31]
[1758615567258,3.78986213,219.81,219.75,7.31]
[1758615567446,3.78986213,219.8,219.74,63.6655]
[1758615567650,4.77,219.86,219.75,7.31]
[1758615567850,4.92905388,219.85,219.79,4.0918]
[1758615568059,3.79182208,219.84,219.75,7.31]
[1758615568352,112.68,219.87,219.77,4.0921]
[1758615568353,8.56182208,219.83,219.77,4.0921]
[1758615568557,8.56182208,219.82,219.77,11.4021]
[1758615568756,4.77,219.8,219.77,11.4021]
[1758615568945,2.95630341,219.85,219.77,11.4021]
[1758615568946,3.79182208,219.79,219.77,11.4021]
[1758615569146,4.77,219.84,219.77,11.4021]
[1758615569348,3.79480309,219.83,219.79,7.31]
[1758615569551,3.79480309,219.82,219.78,11.4019]
[1758615569751,3.79480309,219.81,219.78,11.4019]
[1758615569948,3.79480309,219.8,219.79,7.31]
[1758615570151,45.73,219.88,219.81,4.0915]
[1758615570357,4.93184989,219.87,219.81,4.0915]
[1758615570551,4.77,219.85,219.81,4.0915]
[1758615570750,3.79469365,219.84,219.81,4.0915]
[1758615571151,8.56469365,219.84,219.81,4.0915]
[1758615571359,3.79469365,219.83,219.81,11.3415]
[1758615571562,3.79469365,219.82,219.81,11.3415]
[1758615571756,3.79469365,219.87,219.81,11.3415]
[1758615571949,4.77,219.85,219.81,11.3415]
[1758615572153,3.79469365,219.84,219.81,11.3415]
[1758615572954,3.79469365,219.84,219.82,11.3412]
[1758615573656,3.79469365,219.84,219.82,7.25]
[1758615573862,8.56469365,219.84,219.75,7.25]
[1758615574162,1.89383767,219.83,219.75,7.25]
[1758615574350,3.7964553,219.82,219.75,7.25]
[1758615574553,1.89383767,219.83,219.75,7.25]
[1758615574764,4.77,219.82,219.78,7.25]
[1758615575055,3.79664073,219.81,219.74,1.89383767]
[1758615575260,2.78,219.89,219.85,11.3408]
[1758615576359,2.78,219.89,219.85,4.0908]
[1758615576758,2.78,219.89,219.86,7.25]
[1758615581067,2.78,219.89,219.78,63.6552]
[1758615581068,7.55,219.89,219.82,7.25]
[1758615582967,120.39,219.89,219.82,7.25]
[1758615583464,120.39,219.89,219.78,65.54903767]
[1758615583465,1.89383767,219.87,219.73,63.6693]
[1758615583765,4.77,219.86,219.77,7.25]
[1758615584268,1.89383767,219.85,219.77,7.25]
[1758615584469,1.89383767,219.85,219.78,4.092]
[1758615585166,4.77,219.86,219.77,7.25]
[1758615585167,1.89383767,219.82,219.77,7.25]
[1758615585469,1.89383767,219.82,219.74,7.25]
[1758615586372,1.89383767,219.82,219.79,7.25]
[1758615588371,1.89383767,219.82,219.75,11.3425]
[1758615589168,2.79,219.81,219.75,11.3425]
[1758615589361,2.79,219.81,219.78,7.25]
[1758615589570,2.79,219.81,219.75,7.25]
[1758615590769,1.89383767,219.79,219.7,4.8865285]
[1758615590967,4.77,219.72,219.63,7.25]
[1758615591168,2.79,219.81,219.64,63.6962]
[1758615591469,4.77,219.77,219.67,7.25]
[1758615591670,5.15467354,219.76,219.68,63.6846]
[1758615591876,4.39822327,219.75,219.68,63.6846]
[1758615592076,1.1373874,219.74,219.68,63.6846]
[1758615592280,1.89383767,219.76,219.68,63.6846]
[1758615592473,8.28697942,219.75,219.68,63.6846]
[1758615592777,1.13742172,219.74,219.71,4.0933]
[1758615592977,4.77,219.77,219.72,7.25]
[1758615593171,1.89383767,219.79,219.72,7.25]
[1758615593474,7.14832709,219.78,219.73,4.093]
[1758615593679,80.06383767,219.81,219.73,11.343]
[1758615593870,7.14779985,219.8,219.73,11.343]
[1758615594074,7.14779985,219.79,219.73,11.343]
[1758615594282,7.14779985,219.78,219.74,7.25]
[1758615594473,3.25945728,219.77,219.74,7.25]
[1758615594677,80.06383767,219.81,219.74,7.25]
[1758615594877,7.14825406,219.8,219.74,7.25]
[1758615595079,7.14825406,219.79,219.74,7.25]
[1758615595278,7.14825406,219.78,219.74,7.25]
[1758615595479,3.25967657,219.77,219.74,7.25]
[1758615595679,80.06383767,219.81,219.74,7.25]
[1758615595880,7.14848308,219.8,219.74,7.25]
[1758615596179,7.14848308,219.79,219.73,4.093]
[1758615596383,7.14848308,219.78,219.74,7.25]
[1758615596579,3.2597784,219.77,219.74,7.25]
[1758615596784,118.08383767,219.81,219.74,7.25]
[1758615596981,7.14871078,219.8,219.74,7.25]
[1758615597177,7.14871078,219.79,219.73,11.343]
[1758615597480,7.14871078,219.79,219.68,63.6846]
[1758615597481,2.79,219.81,219.78,1.89383767]
[1758615597784,2.79,219.81,219.79,7.25]
[1758615600578,4.78,219.8,219.73,1.89383767]
[1758615600980,4.78,219.8,219.7,7.02]
[1758615600981,4.78,219.8,219.7,8.91383767]
[1758615601184,1.89383767,219.78,219.7,7.02]
[1758615601584,1.89383767,219.78,219.71,4.0934]
[1758615602784,4.78,219.8,219.71,63.6757]
[1758615602983,4.78,219.8,219.72,7.02]
[1758615603183,4.68383767,219.81,219.72,7.02]
[1758615603386,9.46383767,219.81,219.72,11.1131]
[1758615604485,6.67383767,219.79,219.72,7.02]
[1758615606487,4.78,219.79,219.75,4.0926]
[1758615606685,2.79,219.81,219.74,1.89383767]
[1758615606891,2.79,219.81,219.75,7.02]
[1758615607583,2.79,219.81,219.78,7.02]
[1758615608585,2.79,219.81,219.77,4.0923]
[1758615608790,2.79,219.81,219.78,7.02]
[1758615610894,7.57,219.81,219.77,4.0923]
[1758615611089,7.57,219.81,219.74,11.1128]
[1758615612389,7.57,219.81,219.72,1.89383767]
[1758615612596,8.86402451,219.8,219.71,4.0933]
[1758615612797,11.75018684,219.79,219.71,4.0933]
[1758615612998,6.97018684,219.78,219.71,1.89383767]
[1758615613200,4.68383767,219.81,219.74,7.02]
[1758615613400,11.75104034,219.8,219.71,1.89383767]
[1758615613595,6.97104034,219.79,219.71,1.89383767]
[1758615613897,6.97104034,219.78,219.71,1.89383767]
[1758615614194,4.78,219.8,219.71,1.89383767]
[1758615614395,6.97070729,219.79,219.71,1.89383767]
[1758615614595,6.97070729,219.78,219.71,1.89383767]
[1758615614893,1.89383767,219.73,219.66,7.02]
[1758615616000,1.89383767,219.73,219.66,11.1143]
[1758615619097,1.89383767,219.71,219.63,4.0948]
[1758615619400,3.17646369,219.7,219.63,4.0948]
[1758615619601,4.8,219.72,219.63,4.0948]
[1758615619801,8.82747547,219.71,219.63,4.0948]
[1758615619998,3.17646513,219.7,219.63,4.0948]